[Event "6e Open International d'Echecs des Sable"]
[Site "Sables d'Olonne, France"]
[Date "2019.07.18"]
[Round "8.3"]
[White "Lucas, Arthur"]
[Black "Prie, Eric"]
[Result "1/2-1/2"]
[ECO "C56"]
[WhiteElo "2286"]
[BlackElo "2436"]
[Annotator "jeanluc"]
[PlyCount "40"]
[EventDate "2019.??.??"]
[TimeControl "1/40:0"]
[WhiteClock "0:45:31"]
[BlackClock "0:57:01"]

1. e4 {[%emt 0:00:00]} e5 {[%emt 0:00:00]} 2. Nf3 {[%emt 0:00:00]} Nc6 {
[%emt 0:00:00]} 3. d4 {[%emt 0:00:00]} exd4 {[%emt 0:00:00]} 4. Bc4 {[%emt 0:
00:00]} Nf6 {[%emt 0:00:00]} 5. e5 {[%emt 0:00:00]} d5 {[%emt 0:00:00]} 6. Bb5
{[%emt 0:00:00]} Ne4 {[%emt 0:00:00]} 7. Nxd4 {[%emt 0:00:00]} Bd7 {[%emt 0:00:
00]} 8. Bxc6 {[%emt 0:00:00]} bxc6 {[%emt 0:00:00]} 9. O-O {[%emt 0:00:00]} Bc5
{[%emt 0:00:00]} 10. f3 {[%emt 0:00:00]} Ng5 {[%emt 0:00:00]} 11. Be3 {[%emt 0:
00:00]} O-O {[%emt 0:00:00]} 12. f4 {[%emt 0:00:00]} Ne4 {[%emt 0:00:00]} 13.
Nd2 {[%emt 0:00:00]} Nxd2 {[%emt 0:00:00]} 14. Qxd2 {[%emt 0:00:00]} Re8 {
[%emt 0:00:00]} 15. Nb3 {[%emt 0:00:00]} Bb6 {[%emt 0:00:00]} 16. Rae1 {
[%emt 0:00:00]} Bf5 {[%emt 0:00:00]} 17. Qc3 {[%emt 0:00:00]} Qd7 {[%emt 0:00:
00]} 18. Nc5 {[%emt 0:00:00]} Bxc5 {[%emt 0:00:00]} 19. Bxc5 {[%emt 0:00:00]}
Re6 {[%emt 0:00:00]} 20. Rf3 {[%emt 0:00:00]} Rg6 {[%emt 0:00:00]} 1/2-1/2

[Event "6e Open International d'Echecs des Sable"]
[Site "Sables d'Olonne, France"]
[Date "2019.07.18"]
[Round "8.4"]
[White "Duboue, Peio"]
[Black "Durand-Le Ludec, Brendan-Budok"]
[Result "1-0"]
[ECO "B22"]
[WhiteElo "2409"]
[BlackElo "2199"]
[Annotator "jeanluc"]
[PlyCount "28"]
[EventDate "2019.??.??"]
[TimeControl "1/40:0"]
[WhiteClock "1:21:10"]
[BlackClock "0:52:03"]

1. e4 {[%emt 0:00:00]} c5 {[%emt 0:00:00]} 2. c3 {[%emt 0:00:00]} g6 {[%emt 0:
00:00]} 3. Nf3 {[%emt 0:00:00]} d5 {[%emt 0:00:00]} 4. exd5 {[%emt 0:00:00]}
Qxd5 {[%emt 0:00:00]} 5. d4 {[%emt 0:00:00]} Bg7 {[%emt 0:00:00]} 6. Na3 {
[%emt 0:00:00]} Nf6 {[%emt 0:00:00]} 7. Bc4 {[%emt 0:00:00]} Qh5 {[%emt 0:00:
00]} 8. Nb5 {[%emt 0:00:00]} Na6 {[%emt 0:00:00]} 9. Qb3 {[%emt 0:00:00]} O-O {
[%emt 0:00:00]} 10. Bxf7+ {[%emt 0:00:00]} Rxf7 {[%emt 0:00:00]} 11. Ng5 {
[%emt 0:00:00]} e6 {[%emt 0:00:00]} 12. Nxf7 {[%emt 0:00:00]} Kxf7 {[%emt 0:00:
00]} 13. Nd6+ {[%emt 0:00:00]} Kg8 {[%emt 0:00:00]} 14. Nxc8 {[%emt 0:00:00]}
Rxc8 {[%emt 0:00:00]} 1-0

[Event "6e Open International d'Echecs des Sable"]
[Site "Sables d'Olonne, France"]
[Date "2019.07.18"]
[Round "8.5"]
[White "Dalaud, Dorian"]
[Black "Mariette, Lucas"]
[Result "0-1"]
[ECO "D90"]
[WhiteElo "2220"]
[BlackElo "2244"]
[Annotator "jeanluc"]
[PlyCount "70"]
[EventDate "2019.??.??"]
[TimeControl "1/40:0"]
[WhiteClock "0:01:05"]
[BlackClock "0:02:30"]

1. Nf3 {[%emt 0:00:00]} Nf6 {[%emt 0:00:00]} 2. c4 {[%emt 0:00:00]} g6 {
[%emt 0:00:00]} 3. Nc3 {[%emt 0:00:00]} d5 {[%emt 0:00:00]} 4. cxd5 {[%emt 0:
00:00]} Nxd5 {[%emt 0:00:00]} 5. Qb3 {[%emt 0:00:00]} Nb6 {[%emt 0:00:00]} 6.
d4 {[%emt 0:00:00]} Bg7 {[%emt 0:00:00]} 7. e4 {[%emt 0:00:00]} Bg4 {[%emt 0:
00:00]} 8. Be3 {[%emt 0:00:00]} Bxf3 {[%emt 0:00:00]} 9. gxf3 {[%emt 0:00:00]}
Bxd4 {[%emt 0:00:00]} 10. Rd1 {[%emt 0:00:00]} e5 {[%emt 0:00:00]} 11. Nb5 {
[%emt 0:00:00]} Nc6 {[%emt 0:00:00]} 12. Nxd4 {[%emt 0:00:00]} Nxd4 {[%emt 0:
00:00]} 13. Bxd4 {[%emt 0:00:00]} exd4 {[%emt 0:00:00]} 14. Qb5+ {[%emt 0:00:
00]} Kf8 {[%emt 0:00:00]} 15. Qe5 {[%emt 0:00:00]} f6 {[%emt 0:00:00]} 16. Qf4
{[%emt 0:00:00]} c5 {[%emt 0:00:00]} 17. h4 {[%emt 0:00:00]} h5 {[%emt 0:00:00]
} 18. Rg1 {[%emt 0:00:00]} Kf7 {[%emt 0:00:00]} 19. Bh3 {[%emt 0:00:00]} Nc4 {
[%emt 0:00:00]} 20. Qg3 {[%emt 0:00:00]} Rg8 {[%emt 0:00:00]} 21. b3 {[%emt 0:
00:00]} Ne5 {[%emt 0:00:00]} 22. f4 {[%emt 0:00:00]} Nc6 {[%emt 0:00:00]} 23.
Qf3 {[%emt 0:00:00]} Qe7 {[%emt 0:02:48]} 24. Kf1 {[%emt 0:05:48]} Rae8 {
[%emt 0:00:48]} 25. Re1 {[%emt 0:00:14]} Rg7 {[%emt 0:05:46]} 26. f5 {[%emt 0:
03:41]} Qe5 {[%emt 0:01:56]} 27. Rxg6 {[%emt 0:02:56]} Qh2 {[%emt 0:04:41]} 28.
e5 {[%emt 0:05:05]} Rxe5 {[%emt 0:00:48]} 29. Rxe5 {[%emt 0:00:21]} Qxe5 {
[%emt 0:00:40]} 30. Qxh5 {[%emt 0:00:19]} d3 {[%emt 0:00:53]} 31. Rg3+ {
[%emt 0:00:46]} Kg8 {[%emt 0:00:21]} 32. Rxd3 {[%emt 0:01:12]} Qe4 {[%emt 0:01:
27]} 33. Re3 {[%emt 0:00:58]} Qb1+ {[%emt 0:00:19]} 34. Re1 {[%emt 0:00:24]}
Qd3+ {[%emt 0:00:12]} 35. Re2 {[%emt 0:00:31]} Qd1+ {[%emt 0:00:11]} 0-1

[Event "6e Open International d'Echecs des Sable"]
[Site "Sables d'Olonne, France"]
[Date "2019.07.18"]
[Round "8.6"]
[White "Saucourt, Nathan"]
[Black "Bujisho, Benjamin"]
[Result "0-1"]
[ECO "A46"]
[WhiteElo "1762"]
[BlackElo "2326"]
[Annotator "jeanluc"]
[PlyCount "108"]
[EventDate "2019.??.??"]
[TimeControl "1/40:0"]
[WhiteClock "0:01:22"]
[BlackClock "0:32:37"]

1. d4 {[%emt 0:00:00]} Nf6 {[%emt 0:00:00]} 2. Nf3 {[%emt 0:00:00]} b5 {
[%emt 0:00:00]} 3. e3 {[%emt 0:00:00]} a6 {[%emt 0:00:00]} 4. Be2 {[%emt 0:00:
00]} Bb7 {[%emt 0:00:00]} 5. O-O {[%emt 0:00:00]} e6 {[%emt 0:00:00]} 6. b3 {
[%emt 0:00:00]} Be7 {[%emt 0:00:00]} 7. Bb2 {[%emt 0:00:00]} O-O {[%emt 0:00:
00]} 8. c4 {[%emt 0:00:00]} b4 {[%emt 0:00:00]} 9. Nbd2 {[%emt 0:00:00]} d6 {
[%emt 0:00:00]} 10. Qc2 {[%emt 0:00:00]} Nbd7 {[%emt 0:00:00]} 11. Rfd1 {
[%emt 0:00:00]} c5 {[%emt 0:00:00]} 12. dxc5 {[%emt 0:00:00]} Nxc5 {[%emt 0:00:
00]} 13. Ng5 {[%emt 0:00:00]} h6 {[%emt 0:00:00]} 14. Bxf6 {[%emt 0:00:00]}
hxg5 {[%emt 0:00:00]} 15. Bb2 {[%emt 0:00:00]} Qc7 {[%emt 0:00:00]} 16. Bf3 {
[%emt 0:00:00]} Rac8 {[%emt 0:00:00]} 17. Rac1 {[%emt 0:00:00]} f5 {[%emt 0:00:
00]} 18. Bxb7 {[%emt 0:00:00]} Qxb7 {[%emt 0:00:00]} 19. f3 {[%emt 0:00:00]}
Rcd8 {[%emt 0:00:00]} 20. Bd4 {[%emt 0:00:00]} Qc6 {[%emt 0:00:00]} 21. Nf1 {
[%emt 0:00:50]} a5 {[%emt 0:00:00]} 22. h3 {[%emt 0:03:25]} Nd7 {[%emt 0:00:00]
} 23. Ng3 {[%emt 0:07:41]} Nf6 {[%emt 0:00:00]} 24. e4 {[%emt 0:01:21]} g4 {
[%emt 0:00:00]} 25. Bxf6 {[%emt 0:01:54]} Bxf6 {[%emt 0:00:00]} 26. hxg4 {
[%emt 0:01:27]} fxg4 {[%emt 0:00:00]} 27. Qd3 {[%emt 0:00:27]} gxf3 {[%emt 0:
00:00]} 28. gxf3 {[%emt 0:00:22]} Qc5+ {[%emt 0:00:00]} 29. Kg2 {[%emt 0:01:19]
} Qg5 {[%emt 0:00:00]} 30. Qd2 {[%emt 0:00:27]} Qxd2+ {[%emt 0:00:18]} 31. Rxd2
{[%emt 0:00:15]} Bg5 {[%emt 0:00:15]} 32. Rcd1 {[%emt 0:00:15]} Bxd2 {[%emt 0:
00:13]} 33. Rxd2 {[%emt 0:00:15]} Kf7 {[%emt 0:01:20]} 34. Ne2 {[%emt 0:01:24]}
Ke7 {[%emt 0:02:38]} 35. Nd4 {[%emt 0:00:55]} Rc8 {[%emt 0:00:12]} 36. Nb5 {
[%emt 0:00:45]} Rfd8 {[%emt 0:00:17]} 37. Kg3 {[%emt 0:00:38]} Rc5 {[%emt 0:00:
24]} 38. Kg4 {[%emt 0:00:50]} d5 {[%emt 0:01:08]} 39. exd5 {[%emt 0:00:38]}
exd5 {[%emt 0:00:13]} 40. Re2+ {[%emt 0:00:41]} Kf7 {[%emt 0:02:15]} 41. Rd2 {
[%emt 0:00:00]} Kg8 {[%emt 0:00:00]} 42. f4 {[%emt 0:00:00]} Rb8 {[%emt 0:00:
00]} 43. Nd6 {[%emt 0:00:00]} Rb6 {[%emt 0:00:00]} 44. Nb5 {[%emt 0:00:00]}
dxc4 {[%emt 0:00:00]} 45. bxc4 {[%emt 0:00:00]} Rxc4 {[%emt 0:00:00]} 46. Nd6 {
[%emt 0:00:00]} Rc7 {[%emt 0:00:00]} 47. Ne4 {[%emt 0:00:00]} Rb8 {[%emt 0:00:
00]} 48. Rb2 {[%emt 0:01:56]} a4 {[%emt 0:00:00]} 49. Nf2 {[%emt 0:00:45]} Rc4
{[%emt 0:00:00]} 50. Nd3 {[%emt 0:01:33]} Rf8 {[%emt 0:00:00]} 51. Kg5 {
[%emt 0:02:11]} Rd4 {[%emt 0:00:00]} 52. Nc5 {[%emt 0:01:32]} Rdxf4 {[%emt 0:
00:00]} 53. Nxa4 {[%emt 0:00:37]} R8f5+ {[%emt 0:00:00]} 54. Kg6 {[%emt 0:00:
15]} Re5 {[%emt 0:00:00]} 0-1

[Event "6e Open International d'Echecs des Sable"]
[Site "Sables d'Olonne, France"]
[Date "2019.07.18"]
[Round "8.7"]
[White "Eugene, Nathael"]
[Black "Pottier, Simeon"]
[Result "1-0"]
[ECO "C50"]
[WhiteElo "1353"]
[BlackElo "2192"]
[Annotator "jeanluc"]
[PlyCount "101"]
[EventDate "2019.??.??"]
[TimeControl "1/40:0"]
[WhiteClock "0:48:44"]
[BlackClock "0:42:28"]

1. e4 {[%emt 0:00:00]} e5 {[%emt 0:00:00]} 2. Nf3 {[%emt 0:00:00]} Nc6 {
[%emt 0:00:00]} 3. Bc4 {[%emt 0:00:00]} Bc5 {[%emt 0:00:00]} 4. d3 {[%emt 0:00:
00]} Nf6 {[%emt 0:00:00]} 5. O-O {[%emt 0:00:00]} d6 {[%emt 0:00:00]} 6. h3 {
[%emt 0:00:00]} Na5 {[%emt 0:00:00]} 7. Bb3 {[%emt 0:00:00]} Nxb3 {[%emt 0:00:
00]} 8. axb3 {[%emt 0:00:00]} h6 {[%emt 0:00:00]} 9. Nc3 {[%emt 0:00:00]} O-O {
[%emt 0:00:00]} 10. Na4 {[%emt 0:00:00]} Qe7 {[%emt 0:00:00]} 11. Nxc5 {
[%emt 0:00:00]} dxc5 {[%emt 0:00:00]} 12. Be3 {[%emt 0:00:00]} Nd7 {[%emt 0:00:
00]} 13. Qd2 {[%emt 0:00:00]} b6 {[%emt 0:00:00]} 14. Qc3 {[%emt 0:00:00]} a5 {
[%emt 0:00:00]} 15. Nd2 {[%emt 0:00:00]} Nb8 {[%emt 0:00:00]} 16. f4 exf4 {
[%emt 0:00:00]} 17. Bxf4 {[%emt 0:00:00]} Nc6 {[%emt 0:00:00]} 18. Nf3 {
[%emt 0:00:00]} Be6 {[%emt 0:00:00]} 19. d4 {[%emt 0:00:00]} cxd4 {[%emt 0:00:
00]} 20. Qxc6 {[%emt 0:00:00]} Rac8 {[%emt 0:00:00]} 21. Nxd4 {[%emt 0:00:00]}
Bd7 {[%emt 0:00:00]} 22. Qc3 {[%emt 0:00:00]} Qxe4 {[%emt 0:00:00]} 23. Rae1 {
[%emt 0:00:00]} Qg6 {[%emt 0:00:00]} 24. Qg3 {[%emt 0:00:00]} Qh7 {[%emt 0:00:
00]} 25. Re7 {[%emt 0:00:00]} c5 {[%emt 0:00:00]} 26. Qd3 {[%emt 0:00:00]} cxd4
{[%emt 0:00:00]} 27. Rxd7 {[%emt 0:00:00]} Rxc2 {[%emt 0:00:00]} 28. Qxd4 {
[%emt 0:00:00]} Qg6 {[%emt 0:00:00]} 29. Rf2 {[%emt 0:00:00]} Rc6 {[%emt 0:00:
00]} 30. Rd6 {[%emt 0:00:00]} Rxd6 {[%emt 0:00:00]} 31. Qxd6 {[%emt 0:00:00]}
Qb1+ {[%emt 0:00:00]} 32. Kh2 {[%emt 0:00:00]} Re8 {[%emt 0:00:00]} 33. Qd7 {
[%emt 0:00:00]} Re1 {[%emt 0:00:00]} 34. Qc8+ {[%emt 0:00:00]} Kh7 {[%emt 0:00:
00]} 35. Qc2+ {[%emt 0:00:00]} Qxc2 {[%emt 0:00:00]} 36. Rxc2 {[%emt 0:00:00]}
Re6 {[%emt 0:00:00]} 37. Rd2 {[%emt 0:00:00]} g5 {[%emt 0:00:00]} 38. Bc7 {
[%emt 0:00:00]} Rc6 {[%emt 0:00:00]} 39. Rd7 {[%emt 0:00:00]} Kg6 {[%emt 0:00:
00]} 40. Rd6+ {[%emt 0:00:00]} Rxd6 {[%emt 0:00:00]} 41. Bxd6 {[%emt 0:00:00]}
b5 {[%emt 0:00:00]} 42. b4 {[%emt 0:00:00]} a4 {[%emt 0:00:00]} 43. g4 {
[%emt 0:00:00]} f5 {[%emt 0:00:00]} 44. Be5 {[%emt 0:00:00]} h5 {[%emt 0:00:00]
} 45. Kg3 {[%emt 0:00:00]} hxg4 {[%emt 0:00:00]} 46. hxg4 {[%emt 0:00:00]} fxg4
{[%emt 0:00:00]} 47. Kxg4 {[%emt 0:00:00]} Kf7 {[%emt 0:00:00]} 48. Kf5 {
[%emt 0:00:00]} Ke7 {[%emt 0:00:00]} 49. Ke4 {[%emt 0:00:00]} Ke6 {[%emt 0:00:
00]} 50. Kd4 {[%emt 0:00:00]} g4 {[%emt 0:00:00]} 51. Bb8 {[%emt 0:00:00]} 1-0

[Event "6e Open International d'Echecs des Sable"]
[Site "Sables d'Olonne, France"]
[Date "2019.07.19"]
[Round "9.1"]
[White "Vidal, Llewellyn"]
[Black "Colin, Vincent"]
[Result "1/2-1/2"]
[ECO "A28"]
[WhiteElo "2336"]
[BlackElo "2370"]
[Annotator "jeanluc"]
[PlyCount "21"]
[EventDate "2019.??.??"]
[TimeControl "1/40:0"]
[WhiteClock "1:21:01"]
[BlackClock "1:21:43"]

1. c4 {[%emt 0:00:00]} e5 {[%emt 0:00:00]} 2. Nc3 {[%emt 0:00:00]} Nf6 {
[%emt 0:00:00]} 3. Nf3 {[%emt 0:00:00]} Nc6 {[%emt 0:00:00]} 4. e4 {[%emt 0:00:
00]} g6 {[%emt 0:00:00]} 5. d4 {[%emt 0:00:00]} exd4 {[%emt 0:00:00]} 6. Nxd4 {
[%emt 0:00:00]} Bg7 {[%emt 0:00:00]} 7. Be3 {[%emt 0:00:00]} O-O {[%emt 0:00:
00]} 8. f3 {[%emt 0:00:00]} Nxd4 {[%emt 0:00:00]} 9. Bxd4 {[%emt 0:00:00]} Nh5
{[%emt 0:00:00]} 10. Bxg7 {[%emt 0:00:00]} Nxg7 {[%emt 0:00:00]} 11. Qd2 {
[%emt 0:00:00]} 1/2-1/2

[Event "6e Open International d'Echecs des Sable"]
[Site "Sables d'Olonne, France"]
[Date "2019.07.19"]
[Round "9.2"]
[White "Eugene, Floryan"]
[Black "Duboue, Peio"]
[Result "0-1"]
[ECO "C66"]
[WhiteElo "2300"]
[BlackElo "2409"]
[Annotator "jeanluc"]
[PlyCount "88"]
[EventDate "2019.??.??"]
[TimeControl "1/40:0"]
[WhiteClock "0:18:17"]
[BlackClock "0:01:27"]

1. e4 {[%emt 0:00:00]} e5 {[%emt 0:00:00]} 2. Nf3 {[%emt 0:00:00]} Nc6 {
[%emt 0:00:00]} 3. Bb5 {[%emt 0:00:00]} Nf6 {[%emt 0:00:00]} 4. O-O {[%emt 0:
00:00]} d6 {[%emt 0:00:00]} 5. Re1 {[%emt 0:00:00]} Bd7 {[%emt 0:00:00]} 6. c3
{[%emt 0:00:00]} Be7 {[%emt 0:00:00]} 7. d4 {[%emt 0:00:00]} O-O {[%emt 0:00:
00]} 8. h3 {[%emt 0:00:00]} h6 {[%emt 0:00:00]} 9. Nbd2 {[%emt 0:00:00]} Nxd4 {
[%emt 0:00:00]} 10. cxd4 {[%emt 0:00:00]} Bxb5 {[%emt 0:00:00]} 11. Qb3 {
[%emt 0:00:00]} Ba6 {[%emt 0:00:00]} 12. dxe5 {[%emt 0:00:00]} dxe5 {[%emt 0:
00:00]} 13. Nxe5 {[%emt 0:00:00]} Nd7 {[%emt 0:00:00]} 14. Ndc4 {[%emt 0:00:00]
} Nc5 {[%emt 0:00:00]} 15. Qg3 {[%emt 0:00:00]} Bh4 {[%emt 0:00:00]} 16. Qf3 {
[%emt 0:00:00]} Bxc4 {[%emt 0:00:00]} 17. Nxc4 {[%emt 0:00:00]} Bxf2+ {[%emt 0:
00:00]} 18. Qxf2 {[%emt 0:00:00]} Nd3 {[%emt 0:00:00]} 19. Rd1 {[%emt 0:00:00]}
Nxf2 {[%emt 0:00:00]} 20. Rxd8 {[%emt 0:00:00]} Nxh3+ {[%emt 0:00:00]} 21. gxh3
{[%emt 0:00:00]} Raxd8 {[%emt 0:00:00]} 22. Be3 {[%emt 0:00:00]} Rfe8 {[%emt 0:
00:00]} 23. Nd2 {[%emt 0:00:00]} f5 {[%emt 0:00:00]} 24. Rc1 {[%emt 0:00:00]}
g5 {[%emt 0:00:00]} 25. Nf1 {[%emt 0:00:00]} f4 {[%emt 0:00:00]} 26. Bxa7 {
[%emt 0:00:00]} Rd7 {[%emt 0:00:00]} 27. Bf2 {[%emt 0:00:00]} Rxe4 {[%emt 0:00:
00]} 28. Nh2 {[%emt 0:00:00]} c6 {[%emt 0:00:00]} 29. Ng4 {[%emt 0:00:00]} Re6
{[%emt 0:00:00]} 30. Rc5 {[%emt 0:00:00]} Rd5 {[%emt 0:00:00]} 31. Rxd5 {
[%emt 0:00:00]} cxd5 {[%emt 0:00:00]} 32. Bd4 {[%emt 0:00:00]} h5 {[%emt 0:00:
00]} 33. Ne5 {[%emt 0:00:00]} Ra6 {[%emt 0:01:14]} 34. a3 {[%emt 0:00:00]} Ra4
{[%emt 0:00:16]} 35. Bc3 {[%emt 0:00:00]} Re4 {[%emt 0:03:49]} 36. Nd7 {
[%emt 0:00:00]} Kf7 {[%emt 0:00:13]} 37. Kf2 {[%emt 0:00:12]} d4 {[%emt 0:04:
26]} 38. Bd2 {[%emt 0:01:45]} d3 {[%emt 0:03:15]} 39. Bc3 {[%emt 0:00:13]} Re2+
{[%emt 0:04:46]} 40. Kf1 {[%emt 0:00:22]} Re3 {[%emt 0:00:31]} 41. h4 {[%emt 0:
02:17]} gxh4 {[%emt 0:07:51]} 42. Ne5+ {[%emt 0:05:04]} Ke6 {[%emt 0:00:47]}
43. Ng6 {[%emt 0:00:59]} Rf3+ {[%emt 0:00:19]} 44. Ke1 {[%emt 0:00:11]} h3 {
[%emt 0:00:26]} 0-1

[Event "6e Open International d'Echecs des Sable"]
[Site "Sables d'Olonne, France"]
[Date "2019.07.19"]
[Round "9.3"]
[White "Maleki, Nicolas"]
[Black "Prie, Eric"]
[Result "0-1"]
[ECO "B01"]
[WhiteElo "2088"]
[BlackElo "2436"]
[Annotator "jeanluc"]
[PlyCount "99"]
[EventDate "2019.??.??"]
[TimeControl "1/40:0"]
[WhiteClock "0:02:40"]
[BlackClock "0:23:56"]

1. e4 {[%emt 0:00:00]} d5 {[%emt 0:00:00]} 2. exd5 {[%emt 0:00:00]} Qxd5 {
[%emt 0:00:00]} 3. Nc3 {[%emt 0:00:00]} Qa5 {[%emt 0:00:00]} 4. Bc4 {[%emt 0:
00:00]} Nf6 {[%emt 0:00:00]} 5. d3 {[%emt 0:00:00]} Bg4 {[%emt 0:00:00]} 6. f3
{[%emt 0:00:00]} Bd7 {[%emt 0:00:00]} 7. Nge2 {[%emt 0:00:00]} e6 {[%emt 0:00:
00]} 8. Bf4 {[%emt 0:00:00]} Nc6 {[%emt 0:00:00]} 9. Qd2 {[%emt 0:00:00]} Ne5 {
[%emt 0:00:00]} 10. Bb3 {[%emt 0:00:00]} O-O-O {[%emt 0:00:00]} 11. O-O-O {
[%emt 0:00:00]} Bc6 {[%emt 0:00:00]} 12. Qe1 {[%emt 0:00:00]} Be7 {[%emt 0:00:
00]} 13. d4 {[%emt 0:00:00]} Ng6 {[%emt 0:00:00]} 14. Bd2 {[%emt 0:00:00]} Qa6
{[%emt 0:00:00]} 15. Kb1 {[%emt 0:00:00]} Rhe8 {[%emt 0:00:00]} 16. Qf2 {
[%emt 0:00:00]} b5 {[%emt 0:00:00]} 17. a3 {[%emt 0:00:00]} Qb6 {[%emt 0:00:00]
} 18. Rhf1 {[%emt 0:00:00]} a5 {[%emt 0:00:00]} 19. a4 {[%emt 0:00:00]} b4 {
[%emt 0:00:00]} 20. Na2 {[%emt 0:00:09]} Bd5 {[%emt 0:00:00]} 21. Nac1 {
[%emt 0:01:47]} c5 {[%emt 0:00:00]} 22. Bxd5 {[%emt 0:04:20]} Rxd5 {[%emt 0:00:
00]} 23. c4 {[%emt 0:02:52]} bxc3 {[%emt 0:00:43]} 24. Nxc3 {[%emt 0:02:02]}
Rxd4 {[%emt 0:00:00]} 25. Be3 {[%emt 0:01:07]} Rxd1 {[%emt 0:01:00]} 26. Rxd1 {
[%emt 0:00:18]} Rd8 {[%emt 0:00:19]} 27. Rxd8+ {[%emt 0:00:26]} Kxd8 {[%emt 0:
00:18]} 28. Nd3 {[%emt 0:00:46]} Nd7 {[%emt 0:01:03]} 29. Ne4 {[%emt 0:03:25]}
Qb3 {[%emt 0:09:14]} 30. Ndxc5 {[%emt 0:00:33]} Bxc5 {[%emt 0:00:30]} 31. Nxc5
{[%emt 0:00:38]} Nxc5 {[%emt 0:00:26]} 32. Bxc5 {[%emt 0:00:35]} Qd1+ {[%emt 0:
00:16]} 33. Ka2 {[%emt 0:00:14]} Qxa4+ {[%emt 0:00:18]} 34. Kb1 {[%emt 0:01:16]
} Qd1+ {[%emt 0:00:32]} 35. Ka2 {[%emt 0:00:12]} Ne5 {[%emt 0:00:00]} 36. Bb6+
{[%emt 0:00:40]} Kd7 37. Qc5 {[%emt 0:00:40]} Nc6 {[%emt 0:00:00]} 38. Qf8 {
[%emt 0:00:40]} Qa4+ {[%emt 0:00:00]} 39. Kb1 {[%emt 0:00:40]} Qd1+ {[%emt 0:
00:00]} 40. Ka2 {[%emt 0:00:40]} Nb4+ {[%emt 0:00:00]} 41. Ka3 {[%emt 0:00:40]}
Qa1+ {[%emt 0:00:00]} 42. Kb3 {[%emt 0:00:40]} Qa2+ {[%emt 0:00:00]} 43. Kc3 {
[%emt 0:00:40]} Nd5+ {[%emt 0:00:00]} 44. Kc2 {[%emt 0:00:40]} Qc4+ {[%emt 0:
00:00]} 45. Kb1 {[%emt 0:00:40]} Nxb6 {[%emt 0:00:00]} 46. Qxf7+ {[%emt 0:00:
40]} Kc6 {[%emt 0:00:00]} 47. Qxg7 {[%emt 0:00:40]} Qd3+ {[%emt 0:00:00]} 48.
Ka1 {[%emt 0:00:40]} Nd5 {[%emt 0:00:00]} 49. Qg4 {[%emt 0:00:40]} Kb5 {
[%emt 0:00:00]} 50. Qh5 {[%emt 0:00:40]} 0-1

[Event "6e Open International d'Echecs des Sable"]
[Site "Sables d'Olonne, France"]
[Date "2019.07.19"]
[Round "9.4"]
[White "Bujisho, Benjamin"]
[Black "Eugene, Nathael"]
[Result "1-0"]
[ECO "A26"]
[WhiteElo "2326"]
[BlackElo "1353"]
[Annotator "jeanluc"]
[PlyCount "53"]
[EventDate "2019.??.??"]
[TimeControl "1/40:0"]
[WhiteClock "0:53:14"]
[BlackClock "1:02:45"]

1. Nf3 {[%emt 0:00:00]} Nf6 {[%emt 0:00:00]} 2. g3 {[%emt 0:00:00]} g6 {
[%emt 0:00:00]} 3. Bg2 {[%emt 0:00:00]} Bg7 {[%emt 0:00:00]} 4. O-O {[%emt 0:
00:00]} O-O {[%emt 0:00:00]} 5. c4 {[%emt 0:00:00]} d6 {[%emt 0:00:00]} 6. Nc3
{[%emt 0:00:00]} e5 {[%emt 0:00:00]} 7. d3 {[%emt 0:00:00]} Nc6 {[%emt 0:00:00]
} 8. Rb1 {[%emt 0:00:00]} a5 {[%emt 0:00:00]} 9. a3 {[%emt 0:00:00]} Nh5 {
[%emt 0:00:00]} 10. b4 {[%emt 0:00:00]} axb4 {[%emt 0:00:00]} 11. axb4 {
[%emt 0:00:00]} f5 {[%emt 0:00:00]} 12. b5 {[%emt 0:00:00]} Ne7 {[%emt 0:00:00]
} 13. Qb3 {[%emt 0:00:00]} Be6 {[%emt 0:00:00]} 14. Ng5 {[%emt 0:00:00]} Bf7 {
[%emt 0:00:00]} 15. Bxb7 {[%emt 0:00:00]} Rb8 {[%emt 0:00:00]} 16. Bg2 {
[%emt 0:00:00]} Nf6 {[%emt 0:00:00]} 17. Qc2 {[%emt 0:00:00]} Nd7 {[%emt 0:00:
00]} 18. Nxf7 {[%emt 0:00:00]} Kxf7 {[%emt 0:00:00]} 19. Nd5 {[%emt 0:00:00]}
Nxd5 {[%emt 0:00:00]} 20. Bxd5+ {[%emt 0:00:00]} Ke8 {[%emt 0:00:00]} 21. f4 {
[%emt 0:00:00]} exf4 {[%emt 0:00:00]} 22. Bxf4 {[%emt 0:00:00]} g5 {[%emt 0:00:
00]} 23. Bd2 {[%emt 0:00:00]} f4 {[%emt 0:00:00]} 24. Kh1 {[%emt 0:00:00]} fxg3
{[%emt 0:00:00]} 25. hxg3 {[%emt 0:00:00]} Rf6 {[%emt 0:00:00]} 26. Kg2 {
[%emt 0:00:00]} Qe7 {[%emt 0:00:00]} 27. Bxg5 {[%emt 0:00:00]} 1-0

[Event "6e Open International d'Echecs des Sable"]
[Site "Sables d'Olonne, France"]
[Date "2019.07.19"]
[Round "9.5"]
[White "Boulos, Jean"]
[Black "Lucas, Arthur"]
[Result "0-1"]
[ECO "B32"]
[WhiteElo "1860"]
[BlackElo "2286"]
[Annotator "jeanluc"]
[PlyCount "56"]
[EventDate "2019.??.??"]
[TimeControl "1/40:0"]
[WhiteClock "0:07:42"]
[BlackClock "0:04:34"]

1. e4 {[%emt 0:00:00]} c5 {[%emt 0:00:00]} 2. Nf3 {[%emt 0:00:00]} Nc6 {
[%emt 0:00:00]} 3. d4 {[%emt 0:00:00]} cxd4 {[%emt 0:00:00]} 4. Nxd4 {[%emt 0:
00:00]} e5 {[%emt 0:00:00]} 5. Nf3 {[%emt 0:00:00]} Nf6 {[%emt 0:00:00]} 6.
Nbd2 {[%emt 0:00:00]} Bc5 {[%emt 0:00:00]} 7. Bd3 {[%emt 0:00:00]} O-O {
[%emt 0:00:00]} 8. O-O {[%emt 0:00:00]} d5 {[%emt 0:00:00]} 9. exd5 {[%emt 0:
00:00]} Qxd5 {[%emt 0:00:00]} 10. Qe1 {[%emt 0:00:00]} Bg4 {[%emt 0:00:00]} 11.
Bc4 {[%emt 0:00:00]} Qd6 {[%emt 0:00:00]} 12. c3 {[%emt 0:00:00]} Rfe8 {
[%emt 0:00:00]} 13. Ng5 {[%emt 0:00:00]} Bh5 {[%emt 0:00:00]} 14. Nde4 {
[%emt 0:00:00]} Qe7 {[%emt 0:00:00]} 15. Nxf6+ {[%emt 0:00:00]} Qxf6 {[%emt 0:
00:00]} 16. Ne4 {[%emt 0:00:00]} Qe7 {[%emt 0:00:00]} 17. Bg5 {[%emt 0:00:00]}
Qf8 {[%emt 0:00:00]} 18. Nxc5 {[%emt 0:00:00]} Qxc5 {[%emt 0:00:00]} 19. Bb3 {
[%emt 0:00:00]} e4 {[%emt 0:00:00]} 20. Qe3 {[%emt 0:00:00]} Qb5 {[%emt 0:00:
00]} 21. c4 {[%emt 0:00:00]} Qe5 {[%emt 0:00:00]} 22. Rab1 {[%emt 0:00:00]} Nd4
{[%emt 0:00:00]} 23. Ba4 {[%emt 0:02:35]} Re6 {[%emt 0:00:00]} 24. Bh4 {
[%emt 0:04:30]} Nf5 {[%emt 0:00:00]} 25. Qh3 {[%emt 0:00:58]} Rg6 {[%emt 0:07:
28]} 26. Bd1 {[%emt 0:00:31]} Rh6 {[%emt 0:06:00]} 27. Bg5 {[%emt 0:02:03]} Bg4
{[%emt 0:00:23]} 28. Qg3 {[%emt 0:00:21]} Nxg3 {[%emt 0:00:15]} 0-1